bitfinex/quotes_ETHUSD_20251004
["timestamp","ask_amount","ask_price","bid_price","bid_amount"]
[1759575905645,2.69659686,4494.0,4493.9,2.506]
[1759575905845,0.4714,4494.0,4493.9,2.506]
[1759575908247,0.4714,4494.0,4493.6,0.1112]
[1759575908448,0.4714,4494.0,4493.9,2.506]
[1759575911140,0.4714,4494.0,4493.9,5.506]
[1759575911701,0.4714,4494.0,4493.9,3.0]
[1759575911845,0.97488238,4494.0,4493.9,3.0]
[1759575912038,0.4714,4494.0,4493.9,5.506]
[1759575912554,0.002,4494.3,4493.9,5.506]
[1759575912753,0.4714,4494.2,4493.9,5.506]
[1759575913442,0.4714,4494.1,4493.9,5.506]
[1759575914484,0.002,4494.3,4493.9,5.506]
[1759575914485,0.4714,4494.0,4493.9,5.506]
[1759575914690,2.69658914,4494.0,4493.9,5.507]
[1759575915007,3.18896012,4494.0,4493.9,5.507]
[1759575915596,3.18896012,4494.0,4493.9,3.0]
[1759575915765,3.18896012,4494.0,4493.9,5.507]
[1759575916170,3.18896012,4494.0,4493.9,3.0]
[1759575916485,3.18896012,4494.0,4493.9,5.507]
[1759575919360,2.22518914,4494.0,4493.9,5.507]
[1759575919572,0.002,4494.3,4493.9,5.507]
[1759575919773,0.002,4494.3,4494.0,0.33340839]
[1759575920025,0.002,4494.3,4494.1,2.509]
[1759575920566,0.4312,4494.2,4494.1,2.509]
[1759575920771,2.65629011,4494.2,4494.1,2.509]
[1759575920985,2.22705206,4494.3,4494.1,2.509]
[1759575921263,0.002,4494.3,4494.1,2.509]
[1759575921725,2.22509011,4494.2,4494.1,2.509]
[1759575922306,0.002,4494.3,4494.1,2.509]
[1759575922504,2.22704381,4494.3,4494.1,2.509]
[1759575922711,0.002,4494.3,4494.1,2.509]
[1759575923022,0.002,4494.3,4494.2,0.0222509]
[1759575923391,0.002,4494.3,4494.2,0.3334074]
[1759575923700,0.002,4494.3,4494.2,1.39416814]
[1759575923902,0.002,4494.3,4494.2,1.50536814]
[1759575925282,0.002,4494.3,4494.2,0.76101164]
[1759575925514,0.002,4494.3,4494.2,1.19421164]
[1759575926275,0.002,4494.3,4494.2,3.41930175]
[1759575926474,0.002,4494.3,4494.2,1.48311724]
[1759575926674,0.002,4494.3,4494.2,2.11671724]
[1759575926875,0.002,4494.3,4494.2,4.36405825]
[1759575927720,0.002,4494.3,4494.2,2.11671724]
[1759575927875,0.002,4494.3,4494.2,1.68351724]
[1759575929183,0.002,4494.3,4494.2,2.48098153]
[1759575930377,0.002,4494.3,4494.2,1.68351724]
[1759575930554,2.6752406,4494.3,4494.2,2.6232]
[1759575930913,0.002,4494.3,4494.2,2.6232]
[1759575936550,0.4502,4494.3,4494.2,0.1112]
[1759575936866,2.22509011,4494.2,4494.0,0.1112]
[1759575937177,2.67524264,4494.3,4494.1,2.512]
[1759575937583,0.4502,4494.3,4494.1,2.512]
[1759575938159,2.22509011,4494.2,4494.1,2.512]
[1759575938645,2.22513962,4494.1,4493.9,3.0]
[1759575938842,2.33633962,4494.1,4494.0,2.512]
[1759575939370,2.78453962,4494.1,4494.0,2.512]
[1759575940166,2.33633962,4494.1,4494.0,2.512]
[1759575940348,2.78453962,4494.1,4494.0,2.512]
[1759575941582,2.33633962,4494.1,4494.0,2.512]
[1759575941886,0.1112,4494.1,4494.0,2.512]
[1759575942181,2.22513962,4494.1,4494.0,2.512]
[1759575942790,2.67333962,4494.1,4494.0,2.512]
[1759575945607,2.22518914,4494.0,4493.9,3.0]
[1759575945975,2.22518914,4494.0,4493.9,5.512]
[1759575948189,0.002,4494.2,4493.9,5.512]
[1759575948378,2.22518914,4494.0,4493.9,5.512]
[1759575950414,0.002,4494.2,4493.9,5.512]
[1759575951124,0.002,4494.2,4494.0,0.02225189]
[1759575951411,0.002,4494.2,4494.1,2.512]
[1759575952932,0.002,4494.2,4494.1,2.8221565]
[1759575953092,0.002,4494.2,4494.1,2.511]
[1759575953517,0.002,4494.2,4494.1,3.31015681]
[1759575954509,0.002,4494.2,4494.1,3.99297945]
[1759575955243,0.002,4494.2,4494.1,4.30413595]
[1759575955534,0.002,4494.2,4494.1,4.73733595]
[1759575956130,0.002,4494.2,4494.1,4.30413595]
[1759575956337,0.002,4494.2,4494.1,3.50497914]
[1759575957235,0.002,4494.2,4494.1,2.511]
[1759575957600,0.4655,4494.2,4494.1,2.511]
[1759575957850,0.4655,4494.2,4494.1,3.31028441]
[1759575958000,0.002,4494.2,4494.1,3.31028441]
[1759575958205,0.002,4494.2,4494.1,2.511]
[1759575959338,0.002,4494.2,4494.1,3.24492429]
[1759575961257,0.002,4494.2,4494.1,0.73392429]
[1759575961430,0.002,4494.2,4494.1,3.24492429]
[1759575962276,0.002,4494.2,4494.1,2.511]
[1759575962923,0.4655,4494.2,4494.1,3.42168957]
[1759575965569,0.002,4494.2,4494.1,3.42168957]
[1759575966964,0.002,4494.2,4494.1,3.42068957]
[1759575967845,0.4655,4494.2,4494.1,3.42068957]
[1759575968343,0.002,4494.2,4494.1,3.42068957]
[1759575968555,2.22709011,4494.2,4494.1,3.42068957]
[1759575968757,0.4655,4494.2,4494.1,3.42068957]
[1759575969146,0.002,4494.2,4494.1,3.42068957]
[1759575969940,0.002,4494.2,4494.1,4.18247817]
[1759575970139,0.002,4494.2,4494.1,4.92683467]
[1759575970441,0.002,4494.2,4494.1,4.1273451]
[1759575970641,0.002,4494.2,4494.1,1.1841451]
[1759575970842,0.002,4494.2,4494.1,3.3829886]
[1759575971047,0.002,4494.2,4494.1,3.8161886]
[1759575971424,0.002,4494.2,4494.1,1.3061886]
[1759575971548,0.002,4494.2,4494.1,3.8161886]
[1759575973178,0.002,4494.2,4494.1,3.40523999]
[1759575973706,0.4655,4494.2,4494.1,0.1112]
[1759575973844,2.69062804,4494.2,4494.1,2.51]
[1759575974888,2.69062804,4494.2,4493.8,0.91174515]
[1759575975096,2.22518914,4494.0,4493.9,2.51]
[1759575975389,2.22518914,4494.0,4493.8,0.1122]
[1759575975390,2.22523865,4493.9,4493.8,0.001]
[1759575975558,2.71681834,4493.9,4493.8,2.511]
[1759575975754,2.68873865,4493.9,4493.8,2.511]
[1759575979807,2.68873865,4493.9,4493.8,0.001]
[1759575980292,2.68873865,4493.9,4493.8,2.511]
[1759575982325,2.68873865,4493.9,4493.8,5.511]
[1759575983711,3.24711803,4493.9,4493.8,5.511]
[1759575983871,3.91510062,4493.9,4493.8,5.511]
[1759575985288,4.02630062,4493.9,4493.8,5.511]
[1759575986743,4.02630062,4493.9,4493.8,5.51]
[1759575989196,4.02630062,4493.9,4493.8,3.001]
[1759575989398,4.02630062,4493.9,4493.8,5.51]
[1759575989399,6.42630062,4493.9,4493.8,5.51]
[1759575992248,6.42630062,4493.9,4493.8,1e-08]
[1759576000471,2.22563486,4493.1,4493.0,1e-08]
[1759576000632,2.44819835,4493.1,4493.0,1e-08]
[1759576000831,2.91239835,4493.1,4493.0,1e-08]
[1759576001226,3.58047465,4493.1,4493.0,1e-08]
[1759576006175,2.22573393,4492.9,4492.4,0.001]
[1759576006985,3.12313393,4492.9,4492.4,0.001]
[1759576007306,3.50412367,4492.9,4492.5,2.509]
[1759576007676,3.03992367,4492.9,4492.5,2.509]
[1759576008463,3.03992367,4492.9,4492.4,2.51]
[1759576010457,3.15112367,4492.9,4492.4,0.001]
[1759576010661,3.15112367,4492.9,4492.4,2.51]
[1759576011184,3.58642367,4492.9,4492.4,2.51]
[1759576011897,3.58642367,4492.9,4492.4,0.001]
[1759576012051,3.58642367,4492.9,4492.4,2.51]
[1759576012257,3.58642367,4492.9,4492.4,0.001]
[1759576013377,3.15112367,4492.9,4492.4,0.001]
[1759576014498,3.15112367,4492.9,4492.4,0.4342]
[1759576014693,3.15112367,4492.9,4492.4,0.001]
[1759576014900,3.58642367,4492.9,4492.4,0.001]
[1759576019500,3.58842367,4492.9,4492.4,0.001]
[1759576025534,3.15312367,4492.9,4492.4,0.4342]
[1759576025736,2.77213393,4492.9,4492.4,0.001]
[1759576026032,2.77213393,4492.9,4492.8,0.4342]
[1759576026997,2.77213393,4492.9,4492.8,0.001]
[1759576036955,3.20743393,4492.9,4492.8,0.001]
[1759576039060,0.5464,4492.9,4492.8,0.001]
[1759576039350,0.002,4492.9,4492.8,0.75868984]
[1759576039652,0.002,4492.9,4492.8,0.93677117]
[1759576040931,0.002,4492.9,4492.8,0.91451334]
[1759576045568,0.002,4492.9,4492.8,3.42251334]
[1759576045753,0.002,4492.9,4492.8,3.26668984]
[1759576050770,2.22773393,4492.9,4492.8,3.26668984]
[1759576050956,0.002,4492.9,4492.8,3.26668984]
[1759576051935,2.22773393,4492.9,4492.8,3.26668984]
[1759576052146,2.22773393,4492.9,4492.8,3.68443334]
[1759576053737,2.22773393,4492.9,4492.8,3.25123334]
[1759576057167,2.22773393,4492.9,4492.8,2.9267435]
[1759576058871,2.22773393,4492.9,4492.8,3.25123334]
[1759576058872,0.002,4492.9,4492.8,3.25123334]
[1759576059464,0.002,4492.9,4492.8,3.68443334]
[1759576060878,0.002,4492.9,4492.8,3.70669117]
[1759576063157,0.002,4492.9,4492.8,6.70669117]
[1759576063451,0.002,4492.9,4492.8,6.68443334]
[1759576065000,0.002,4492.9,4492.8,6.25123334]
[1759576066407,2.22773393,4492.9,4492.8,7.05077849]
[1759576066703,0.002,4492.9,4492.8,5.83348984]
[1759576067403,0.002,4492.9,4492.8,6.63303499]
[1759576068416,2.22773393,4492.9,4492.8,5.83348984]
[1759576068593,2.22773393,4492.9,4492.8,5.509]
[1759576069504,0.002,4492.9,4492.8,5.509]
[1759576070588,2.22773393,4492.9,4492.8,5.509]
[1759576090746,2.69623393,4492.9,4492.8,3.001]
[1759576091044,3.18842272,4492.9,4492.8,1e-08]
[1759576091244,3.18842272,4492.9,4492.8,2.50600001]
[1759576091482,3.29962272,4492.9,4492.8,2.50600001]
[1759576092801,2.2259321,4492.5,4492.4,0.001]
[1759576093146,2.8056321,4492.5,4492.4,0.001]
[1759576094060,2.8056321,4492.5,4492.0,0.001]
[1759576094061,2.22613031,4492.1,4492.0,0.001]
[1759576094263,2.22613031,4492.1,4492.0,2.507]
[1759576094574,3.18669949,4492.1,4492.0,2.507]
[1759576094759,3.85489781,4492.1,4492.0,2.507]
[1759576097197,2.89432863,4492.1,4492.0,2.507]
[1759576097702,2.22613031,4492.1,4492.0,2.507]
[1759576101670,2.69553031,4492.1,4492.0,2.507]
[1759576101871,2.22613031,4492.1,4492.0,2.507]
[1759576102872,2.69553031,4492.1,4492.0,2.507]
[1759576103382,2.22613031,4492.1,4492.0,2.507]
[1759576103602,2.22613031,4492.1,4492.0,0.001]
[1759576103901,3.20756173,4492.1,4492.0,2.507]
[1759576104096,2.69553031,4492.1,4492.0,2.507]
[1759576104502,2.7846133,4492.1,4492.0,2.507]
[1759576111033,2.3152133,4492.1,4492.0,2.508]
[1759576111342,2.7634133,4492.1,4492.0,2.508]
[1759576111742,3.27348078,4492.1,4492.0,2.508]
[1759576112818,3.27348078,4492.1,4492.0,0.001]
[1759576113191,1.04735047,4492.1,4491.5,0.001]
[1759576113393,2.22637812,4491.6,4491.5,0.001]
[1759576113629,2.33757812,4491.6,4491.5,0.001]
[1759576113939,3.35336694,4491.6,4491.5,0.001]
[1759576114622,3.35336694,4491.6,4491.5,2.508]
[1759576115440,3.35336694,4491.6,4491.1,0.011]
[1759576115741,2.33777641,4491.2,4491.1,0.011]
[1759576116099,2.78597641,4491.2,4491.1,0.011]
[1759576116341,3.1091413,4491.2,4491.1,0.011]
[1759576116636,3.77744382,4491.2,4491.1,2.518]
[1759576127561,3.77744382,4491.2,4491.1,1e-08]
[1759576128083,2.22682432,4490.7,4490.6,0.001]
[1759576128606,2.33802432,4490.7,4490.6,0.001]
[1759576128772,2.42713787,4490.7,4490.6,0.001]
[1759576129386,2.42713787,4490.7,4490.6,2.508]
[1759576129900,3.38554728,4490.7,4490.6,0.001]
[1759576130065,3.38554728,4490.7,4490.6,2.508]
[1759576133533,7.01318384,4490.7,4490.6,0.001]
[1759576133707,2.22722109,4489.9,4489.8,0.001]
[1759576134303,2.65812109,4489.9,4489.8,0.001]
[1759576134501,3.32663806,4489.9,4489.8,0.001]
[1759576140443,3.32663806,4489.9,4489.8,1.751]
[1759576141619,2.89573806,4489.9,4489.8,1.751]
[1759576142252,3.35212688,4489.9,4489.8,1.751]
[1759576143030,3.78302688,4489.9,4489.8,1.751]
[1759576143735,3.89422688,4489.9,4489.8,1.751]
[1759576147657,3.46332688,4489.9,4489.8,1.751]
[1759576151960,3.89422688,4489.9,4489.8,1.751]
[1759576153769,3.89422688,4489.9,4489.8,1e-08]
[1759576159362,8.08422688,4489.9,4489.8,1e-08]
[1759576163099,7.65332688,4489.9,4489.8,1e-08]
[1759576163490,3.46332688,4489.9,4489.8,1e-08]
[1759576165406,3.91862688,4489.9,4489.8,1e-08]
[1759576171212,3.91862688,4489.9,4489.8,0.00100001]
[1759576171504,3.92062688,4489.9,4489.8,0.00100001]
[1759576175642,3.46532688,4489.9,4489.8,0.00100001]
[1759576176863,3.89412688,4489.9,4489.8,0.00100001]
[1759576177455,3.46532688,4489.9,4489.8,0.00100001]
[1759576177902,3.89412688,4489.9,4489.8,0.00100001]
[1759576182155,3.89412688,4489.9,4489.8,0.001]
[1759576184019,3.46532688,4489.9,4489.8,0.001]
[1759576184178,3.89412688,4489.9,4489.8,0.001]
[1759576185515,2.22766763,4489.0,4488.2,1.19619643]
[1759576185814,2.22766763,4489.0,4487.1,0.01]
[1759576185815,2.22766763,4489.0,4488.6,0.4332]
[1759576186180,2.22766763,4489.0,4488.5,0.001]
[1759576186181,2.89631572,4489.0,4488.5,0.001]
[1759576186914,2.89631572,4489.0,4488.6,2.508]
[1759576187132,3.64828061,4489.0,4488.5,2.509]
[1759576187611,3.21948061,4489.0,4488.5,2.509]
[1759576190006,2.89631572,4489.0,4488.5,2.509]
[1759576191412,2.89631572,4489.0,4488.5,2.9422]
[1759576195586,3.00751572,4489.0,4488.5,2.9422]
[1759576197539,3.00751572,4489.0,4488.5,2.509]
[1759576202125,3.46671572,4489.0,4488.5,2.509]
[1759576202638,2.22786614,4488.6,4488.5,1e-08]
[1759576202840,2.33906614,4488.6,4488.5,2.50800001]
[1759576203355,3.00777981,4488.6,4488.5,2.50800001]
[1759576204510,3.00777981,4488.6,4488.5,1e-08]
[1759576204753,3.00777981,4488.6,4488.5,2.50800001]
[1759576218463,3.46697981,4488.6,4488.5,2.50800001]
[1759576218939,4.03645774,4488.6,4488.5,2.50800001]
[1759576223326,3.57725774,4488.6,4488.5,2.50800001]
[1759576224463,3.57925774,4488.6,4488.5,2.50800001]
[1759576230249,3.00977981,4488.6,4488.5,2.94120001]
[1759576230455,3.00977981,4488.6,4488.5,2.50800001]
[1759576235553,3.45987981,4488.6,4488.5,2.50800001]
[1759576235760,3.00977981,4488.6,4488.5,2.50800001]
[1759576243697,3.45987981,4488.6,4488.5,2.50800001]
[1759576243859,4.02864774,4488.6,4488.5,2.50800001]
[1759576245581,3.57854774,4488.6,4488.5,2.50800001]
[1759576247514,3.00977981,4488.6,4488.5,2.50800001]
[1759576248310,3.00977981,4488.6,4488.5,2.94120001]
[1759576249772,3.00977981,4488.6,4488.5,2.50800001]
[1759576253222,3.00977981,4488.6,4488.5,2.94120001]
[1759576253386,0.78191367,4488.6,4488.5,3.26568985]
[1759576253719,0.78191367,4488.6,4488.5,4.49235883]
[1759576253933,3.00977981,4488.6,4488.5,3.59235883]
[1759576254114,2.22986614,4488.6,4488.5,3.59235883]
[1759576254277,0.002,4488.6,4488.5,3.59235883]
[1759576254917,2.22986614,4488.6,4488.5,3.15915883]
[1759576255085,2.22986614,4488.6,4488.5,3.59235883]
[1759576255495,2.22986614,4488.6,4488.5,2.83466899]
[1759576255714,2.22986614,4488.6,4488.5,2.50800001]
[1759576255894,2.22986614,4488.6,4488.5,2.94120001]
[1759576258383,0.002,4488.6,4488.5,3.26568985]
[1759576258597,0.002,4488.6,4488.5,4.16568985]
[1759576261531,0.002,4488.6,4488.5,3.73248985]
[1759576261697,2.22986614,4488.6,4488.5,3.73248985]
[1759576262486,2.22986614,4488.6,4488.5,1.22448985]
[1759576262817,2.22986614,4488.6,4488.5,3.40800001]
[1759576264517,2.22986614,4488.6,4488.5,0.90000001]
[1759576264805,2.22986614,4488.6,4488.5,3.40800001]
[1759576265521,0.002,4488.6,4488.5,3.40800001]
[1759576266699,0.002,4488.6,4488.5,3.73248985]
[1759576269623,0.002,4488.6,4488.5,4.5957068]
[1759576269929,0.002,4488.6,4488.5,7.45722258]
[1759576270103,0.002,4488.6,4488.5,10.65788502]
[1759576270529,0.002,4488.6,4488.5,9.94635539]
[1759576272320,0.002,4488.6,4488.5,7.71843961]
[1759576273123,0.002,4488.6,4488.5,9.94635539]
[1759576274430,0.002,4488.6,4488.5,11.14255182]
[1759576276198,0.002,4488.6,4488.5,9.94635539]
[1759576276399,0.002,4488.6,4488.5,11.14255182]
[1759576277033,0.002,4488.6,4488.5,25.64255182]
[1759576277403,0.002,4488.6,4488.5,24.44635539]
[1759576279946,0.002,4489.0,4488.9,2.22771725]
[1759576280154,0.002,4489.0,4488.9,7.59368426]
[1759576280348,0.002,4489.0,4488.9,7.57140709]
[1759576280517,0.002,4489.0,4488.9,22.50460709]
[1759576280714,0.002,4489.0,4488.9,22.59373533]
[1759576281026,0.002,4489.0,4488.9,24.87135431]
[1759576281214,0.002,4489.0,4488.9,24.43815431]
[1759576281614,0.002,4489.0,4488.9,4.87794722]
[1759576281842,0.4625,4489.0,4488.5,2.12882858]
[1759576282144,2.22786614,4488.6,4488.5,1.01120001]
[1759576282348,2.68836614,4488.6,4488.5,3.51920001]
[1759576283915,2.68836614,4488.6,4488.5,1.01120001]
[1759576284115,2.68836614,4488.6,4488.5,3.40800001]
[1759576285835,2.68836614,4488.6,4488.5,1e-08]
[1759576286036,3.25796354,4488.6,4488.5,2.50800001]
[1759576287491,2.68836614,4488.6,4488.5,2.50800001]
[1759576288593,3.35708279,4488.6,4488.5,2.50800001]
[1759576291257,3.35708279,4488.6,4488.5,1e-08]
[1759576291954,3.35908279,4488.6,4488.5,1e-08]
[1759576315820,3.00978279,4488.6,4488.5,1e-08]
[1759576323367,3.45648279,4488.6,4488.5,1e-08]
[1759576323831,3.00978279,4488.6,4488.5,1e-08]
[1759576324163,3.45648279,4488.6,4488.5,1e-08]
[1759576325266,4.44390794,4488.6,4488.5,1e-08]
[1759576326242,2.22811434,4488.1,4487.6,0.001]
[1759576326642,2.33931434,4488.1,4487.6,0.001]
[1759576326973,3.45483386,4488.1,4487.6,0.001]
[1759576327266,3.57642199,4488.1,4487.6,0.001]
[1759576333493,4.02312199,4488.1,4487.6,0.001]
[1759576334655,3.57642199,4488.1,4487.6,0.001]
[1759576335187,3.57642199,4488.1,4487.6,2.509]
[1759576336422,3.00813386,4488.1,4487.7,0.4332]
[1759576336628,3.00813386,4488.1,4487.6,2.509]
[1759576336629,2.22811434,4488.1,4488.0,0.75868984]
[1759576337136,2.22811434,4488.1,4488.0,1.65868984]
[1759576337329,2.22811434,4488.1,4488.0,0.75868984]
[1759576337485,2.22803817,4488.3,4488.0,0.91666825]
[1759576337687,2.22791578,4488.5,4488.1,0.77997098]
[1759576338025,2.2280647,4488.2,4488.1,0.34677098]
[1759576338406,2.2280647,4488.2,4488.1,0.77997098]
[1759576340304,2.22800688,4488.4,4488.1,0.75768984]
[1759576340485,2.22986985,4488.6,4488.1,0.75768984]
[1759576340486,2.22803069,4488.3,4488.2,0.60474799]
[1759576340686,2.22803069,4488.3,4488.2,3.11274799]
[1759576341929,2.22803069,4488.3,4488.2,2.508]
[1759576342130,2.22803069,4488.3,4488.2,3.408]
[1759576344125,2.22803069,4488.3,4488.2,2.508]
[1759576344477,2.69593069,4488.3,4488.2,2.508]
[1759576345326,2.22803069,4488.3,4488.2,2.508]
[1759576345565,2.2280647,4488.2,4488.1,0.001]
[1759576345751,2.2280647,4488.2,4488.1,2.509]
[1759576352931,2.6798647,4488.2,4488.1,2.509]
[1759576354165,2.2280647,4488.2,4488.1,2.509]
[1759576359281,2.2300647,4488.2,4488.1,2.509]
[1759576359449,2.2300647,4488.2,4488.1,2.76]
[1759576359450,0.002,4488.2,4488.1,2.76]
[1759576359646,0.002,4488.2,4488.1,3.53997098]
[1759576360072,0.002,4488.2,4488.1,4.43997098]
[1759576360289,0.002,4488.2,4488.1,4.41768984]
[1759576361688,0.002,4488.2,4488.1,1.47648984]
[1759576361992,0.002,4488.2,4488.1,4.43997098]
[1759576362235,0.002,4488.2,4488.1,4.41768984]
[1759576363395,0.002,4488.2,4488.1,3.98448984]
[1759576363561,2.2300647,4488.2,4488.1,3.409]
[1759576363893,2.6818647,4488.2,4488.1,0.901]
[1759576364082,2.6818647,4488.2,4488.1,2.509]
[1759576369895,0.002,4488.2,4488.1,2.509]
[1759576372899,2.6600647,4488.2,4488.1,2.509]
[1759576373062,3.1169801,4488.2,4488.1,0.001]
[1759576373258,3.1169801,4488.2,4488.1,2.509]
[1759576385348,3.1169801,4488.2,4488.1,0.001]
[1759576385554,3.1169801,4488.2,4488.1,2.509]
[1759576387455,3.1169801,4488.2,4488.1,0.001]
[1759576388633,2.6869801,4488.2,4488.1,0.001]
[1759576389123,3.1169801,4488.2,4488.1,0.001]
[1759576391869,2.6869801,4488.2,4488.1,0.001]
[1759576392024,3.1169801,4488.2,4488.1,0.001]
[1759576394274,2.6869801,4488.2,4488.1,0.001]
[1759576394472,5.6249801,4488.2,4488.1,0.001]
[1759576394777,6.29390848,4488.2,4488.1,0.001]
[1759576395630,3.78590848,4488.2,4488.1,0.001]
[1759576395831,6.29390848,4488.2,4488.1,0.001]
[1759576396489,5.86390848,4488.2,4488.1,0.001]
[1759576396828,3.35590848,4488.2,4488.1,0.001]
[1759576397127,3.46710848,4488.2,4488.1,0.001]
[1759576397340,3.89710848,4488.2,4488.1,0.001]
[1759576398271,3.46710848,4488.2,4488.1,0.001]
[1759576398859,3.89710848,4488.2,4488.1,0.001]
[1759576399571,3.46710848,4488.2,4488.1,0.001]
[1759576400378,3.90570848,4488.2,4488.1,0.001]
[1759576402008,6.41370848,4488.2,4488.1,0.001]
[1759576411024,2.22851157,4487.3,4487.2,0.001]
[1759576411225,2.33971157,4487.3,4487.2,0.001]
[1759576414931,2.33971157,4487.3,4487.2,0.4342]
[1759576415337,2.33971157,4487.3,4487.2,0.001]
[1759576417270,2.42891574,4487.3,4487.2,0.001]
[1759576417567,3.0167898,4487.3,4487.2,0.001]
[1759576426384,3.0167898,4487.3,4486.3,0.4332]
[1759576426385,2.2286109,4487.1,4486.3,0.4332]
[1759576426798,2.6578109,4487.1,4486.1,0.4432]
[1759576427290,3.0910109,4487.1,4486.1,0.4432]
[1759576427476,3.5479263,4487.1,4486.1,0.4432]
[1759576427676,3.5479263,4487.1,4486.7,0.001]
[1759576439501,3.1147263,4487.1,4486.7,0.001]
[1759576442470,2.6855263,4487.1,4486.7,0.001]
[1759576442666,3.1198263,4487.1,4486.7,0.001]
[1759576442897,3.20903544,4487.1,4486.7,0.001]
[1759576444593,7.39903544,4487.1,4486.7,0.001]
[1759576445018,7.40103544,4487.1,4486.7,0.001]
[1759576445190,7.3118263,4487.1,4486.7,0.001]
[1759576446810,2.22885926,4486.6,4486.5,1e-08]
[1759576450734,6.41885926,4486.6,4486.5,1e-08]
[1759576451536,6.41885926,4486.6,4486.5,0.43320001]
[1759576454087,6.41885926,4486.6,4486.5,1e-08]
[1759576455894,6.85315926,4486.6,4486.5,1e-08]
[1759576456094,2.22940586,4485.5,4485.3,0.79881162]
[1759576456322,2.22945556,4485.4,4485.3,0.4332]
[1759576456551,2.22955498,4485.2,4485.1,0.80881162]
[1759576456749,2.22955498,4485.2,4485.1,1.24201162]
[1759576456952,2.22955498,4485.2,4485.1,2.07644301]
[1759576457181,2.22955498,4485.2,4485.1,1.27763139]
[1759576457461,2.22950527,4485.3,4485.1,0.4432]
[1759576457758,2.22955498,4485.2,4485.1,0.4432]
[1759576459262,2.22955498,4485.2,4485.1,0.01]
[1759576460366,2.22955498,4485.2,4485.1,0.4432]
[1759576460967,0.1112,4485.4,4485.1,0.4432]
[1759576461263,2.22955498,4485.2,4485.1,0.01]
[1759576461568,2.22955498,4485.2,4485.1,2.524]
[1759576461738,2.22955498,4485.2,4485.1,2.9572]
[1759576462865,2.22955498,4485.2,4485.1,2.524]
[1759576463429,2.22955498,4485.2,4485.1,2.525]
[1759576463767,2.22955498,4485.2,4485.1,0.011]
[1759576463964,2.22955498,4485.2,4485.1,2.9582]
[1759576464265,2.22950527,4485.3,4485.1,2.9582]
[1759576464434,2.22955498,4485.2,4485.1,2.525]
[1759576464869,0.1112,4485.4,4485.1,0.011]
[1759576465170,2.22952078,4485.3,4485.2,2.9472]
[1759576465868,2.22952078,4485.3,4485.2,2.514]
[1759576466167,2.22952078,4485.3,4485.2,3.27195329]
[1759576466492,0.1112,4485.4,4485.2,3.60024862]
[1759576466672,0.1112,4485.4,4485.3,0.78024834]
[1759576466871,2.22922596,4485.9,4485.3,1.08756306]
[1759576467177,0.4328,4486.5,4485.4,0.82728584]
[1759576467350,2.22933958,4485.7,4485.4,1.49634103]
[1759576467554,2.22933958,4485.7,4485.5,0.54622013]
[1759576467755,2.22933958,4485.7,4485.5,0.97942013]
[1759576467953,2.22933958,4485.7,4485.6,0.4332]
[1759576468675,0.4328,4486.4,4485.6,0.4332]
[1759576468875,2.22925676,4485.8,4485.7,2.514]
[1759576470649,2.22930646,4485.7,4485.6,0.19732286]
[1759576470842,2.22925676,4485.8,4485.7,2.514]
[1759576472203,2.22925573,4485.9,4485.7,2.514]
[1759576472412,2.22925676,4485.8,4485.7,2.514]
[1759576476928,2.34045676,4485.8,4485.7,2.514]
[1759576479385,0.1112,4485.8,4485.7,2.7654]
[1759576479592,0.4357,4487.0,4485.7,3.82556801]
[1759576479822,0.1112,4486.1,4485.8,0.34704585]
[1759576480120,0.1112,4486.1,4485.7,3.07271472]
[1759576480121,0.1112,4486.1,4485.9,2.516]
[1759576480292,2.66485737,4486.0,4485.9,2.516]
[1759576480629,2.2292352,4485.9,4485.2,1.57909367]
[1759576480921,2.2292352,4485.9,4485.3,2.95781937]
[1759576481129,2.22939777,4485.6,4485.3,2.516]
[1759576481297,2.22944353,4485.5,4485.4,2.516]
[1759576481895,0.1112,4485.8,4485.2,1.57909367]
[1759576482085,2.22930646,4485.7,4485.3,2.516]
[1759576482287,2.22930646,4485.7,4485.2,0.91001162]
[1759576482288,2.2294356,4485.5,4485.2,0.1112]
[1759576482528,2.22930646,4485.7,4485.2,0.1112]
[1759576482529,2.2293545,4485.7,4485.4,2.516]
[1759576483122,2.22935846,4485.6,4485.4,2.516]
[1759576483321,2.22935846,4485.6,4485.3,0.4281]
[1759576483526,2.22935846,4485.6,4485.5,2.516]
[1759576484404,2.22941078,4485.5,4485.3,0.4281]
[1759576484589,2.22941078,4485.5,4485.4,2.516]
[1759576485027,2.22937024,4485.6,4485.4,2.516]
[1759576485493,2.22937024,4485.6,4485.3,0.4281]
[1759576485694,2.22937024,4485.6,4485.4,2.516]
[1759576485894,2.2293157,4485.7,4485.4,2.9441]
[1759576486428,2.22934812,4485.7,4485.4,3.68783978]
[1759576486831,0.1112,4485.8,4485.4,3.68783978]
[1759576487026,2.34050093,4485.8,4485.5,0.75285329]
[1759576487228,2.34050093,4485.8,4485.6,0.45039356]
[1759576487433,2.22930646,4485.7,4485.6,0.45039356]
[1759576487634,0.1112,4485.8,4485.6,2.96639356]
[1759576487838,2.3404665,4485.8,4485.6,2.53829356]
[1759576488020,2.22930646,4485.7,4485.6,2.53829356]
[1759576488212,2.22930646,4485.7,4485.6,2.516]
[1759576490824,2.67370646,4485.7,4485.6,2.516]
[1759576491194,2.22930646,4485.7,4485.6,2.516]
[1759576492459,2.67370646,4485.7,4485.6,2.516]
[1759576496617,2.22930646,4485.7,4485.6,2.516]
[1759576499873,2.67370646,4485.7,4485.6,2.516]
[1759576500368,0.94581156,4485.7,4485.3,0.79881162]
[1759576500667,2.23111101,4486.1,4485.6,0.001]
[1759576501035,2.34050646,4485.7,4485.6,0.001]
[1759576501767,2.78490646,4485.7,4485.6,0.001]